[Event "DFMMLV 2019"]
[Site "Braunfels"]
[Date "2019.06.21"]
[Round "2.44"]
[White "Roesler, Hannah Clara Hed"]
[Black "Wollscheid, Stefanie"]
[Result "1-0"]
[ECO "B22"]
[WhiteElo "1638"]
[BlackElo "1705"]
[Annotator "NA RC"]
[PlyCount "89"]
[EventDate "2019.06.20"]
[EventType "team-tourn"]
[EventCountry "GER"]
[SourceTitle "playchess.com"]
[Source "ChessBase"]
[SourceQuality "1"]
[WhiteTeam "Wuerttemberg 2"]
[BlackTeam "Niedersachsen Bremen"]
[TimeControl "40/5400+30:1800+30"]

1. e4 {[%emt 0:00:00]} c5 {[%emt 0:00:00]} 2. c3 {[%emt 0:00:15]} d6 {[%emt 0:00:00]} 3. d4 {[%emt 0:02:38]} cxd4 {[%emt 0:00:42]} 4. cxd4 {[%emt 0:00:25]} Nf6 {[%emt 0:00:28]} 5. Nc3 {[%emt 0:01:33]} g6 {[%emt 0:01:00]} 6. Bf4 {[%emt 0:06:22]} Bg7 {[%emt 0:01:46]} 7. Rc1 {[%emt 0:04:15]} a6 {[%emt 0:00:53]} 8. Be2 {[%emt 0:11:10]} O-O {[%emt 0:03:42]} 9. Nf3 {[%emt 0:03:00]} Bd7 {[%emt 0:03:31]} 10. O-O {[%emt 0:08:14]} Nc6 {[%emt 0:07:41]} 11. d5 {[%emt 0:03:28]} Na7 {[%emt 0:01:54]} 12. Qb3 {[%emt 0:06:50]} b5 {[%emt 0:07:16]} 13. h3 {[%emt 0:02:08]} Re8 {[%emt 0:07:55]} 14. a3 {[%emt 0:07:22]} Nh5 {[%emt 0:13:54]} 15. Be3 {[%emt 0:06:36]} e6 {[%emt 0:13:33]} 16. Ng5 {[%emt 0:03:40]} e5 {[%emt 0:01:57]} 17. Bxh5 {[%emt 0:01:41]} gxh5 {[%emt 0:00:07]} 18. Ne2 {[%emt 0:01:56]} Bf6 {[%emt 0:01:27]} 19. Nf3 {[%emt 0:01:36]} h4 {[%emt 0:00:38]} 20. Rc2 {[%emt 0:02:43]} Kh8 {[%emt 0:02:08]} 21. Rfc1 {[%emt 0:00:59]} Rg8 {[%emt 0:04:49]} 22. Kh2 {[%emt 0:03:57]} Nc8 {[%emt 0:08:46]} 23. Rc7 {[%emt 0:03:58]} Rb8 {[%emt 0:02:07]} 24. Ne1 {[%emt 0:02:19]} Qe8 {[%emt 0:04:15]} 25. Bh6 {[%emt 0:02:34]} Bd8 {[%emt 0:00:37]} 26. R7c2 Rg6 {[%emt 0:00:41]} 27. Be3 {[%emt 0:03:07]} Qg8 {[%emt 0:00:35]} 28. Qc3 {[%emt 0:01:37]} Nb6 {[%emt 0:02:19]} 29. f4 {[%emt 0:02:09]} Nc4 {[%emt 0:01:38]} 30. Bf2 {[%emt 0:01:14]} Bf6 {[%emt 0:00:56]} 31. f5 {[%emt 0:01:08]} Rg7 {[%emt 0:01:07]} 32. Qf3 {[%emt 0:01:56]} Bc8 {[%emt 0:03:46]} 33. b3 {[%emt 0:01:23]} Nxa3 {[%emt 0:00:37]} 34. Rc6 {[%emt 0:00:51]} Qd8 {[%emt 0:01:22]} 35. Be3 {[%emt 0:01:36]} Bg5 {[%emt 0:01:12]} 36. Bxg5 {[%emt 0:00:55]} Rxg5 {[%emt 0:00:09]} 37. Qc3 {[%emt 0:00:58]} Bb7 {[%emt 0:01:08]} 38. Rc7 {[%emt 0:00:31]} Qe8 {[%emt 0:01:06]} 39. Qb4 {[%emt 0:00:57]} Bxd5 {[%emt 0:00:53]} 40. exd5 {[%emt 0:00:40]} e4 {[%emt 0:00:10]} 41. Qxd6 {[%emt 0:01:18]} b4 {[%emt 0:00:47]} 42. Rxf7 {[%emt 0:05:40]} Kg8 {[%emt 0:02:55]} 43. Re7 {[%emt 0:01:50]} Qf8 {[%emt 0:01:31]} 44. Qe6+ {[%emt 0:03:23]} Kh8 {[%emt 0:02:20]} 45. Rf7 {[%emt 0:02:24]} 1-0

[Event "DFMMLV 2019"]
[Site "Braunfels"]
[Date "2019.06.21"]
[Round "2.45"]
[White "Grabowski, Petra"]
[Black "Hoeglauer, Jenny"]
[Result "1-0"]
[ECO "A46"]
[WhiteElo "1626"]
[BlackElo "1703"]
[Annotator "NA RC"]
[PlyCount "53"]
[EventDate "2019.06.20"]
[EventType "team-tourn"]
[EventCountry "GER"]
[SourceTitle "playchess.com"]
[Source "ChessBase"]
[SourceQuality "1"]
[WhiteTeam "Niedersachsen Bremen"]
[BlackTeam "Wuerttemberg 2"]
[TimeControl "40/5400+30:1800+30"]

1. d4 {[%emt 0:00:00]} Nf6 {[%emt 0:00:00]} 2. Nf3 {[%emt 0:00:00]} e6 {[%emt 0:00:00]} 3. e3 {[%emt 0:00:00]} b6 {[%emt 0:00:15]} 4. Bd3 {[%emt 0:00:20]} Bb7 {[%emt 0:00:25]} 5. O-O {[%emt 0:00:16]} c5 {[%emt 0:01:02]} 6. c3 {[%emt 0:00:42]} d5 {[%emt 0:01:16]} 7. Ne5 {[%emt 0:03:51]} Nbd7 {[%emt 0:01:05]} 8. f4 {[%emt 0:01:36]} Bd6 {[%emt 0:07:12]} 9. Nd2 {[%emt 0:00:50]} O-O {[%emt 0:03:47]} 10. Qf3 {[%emt 0:01:05]} cxd4 {[%emt 0:04:55]} 11. exd4 {[%emt 0:01:06]} Ne8 {[%emt 0:06:07]} 12. Qh3 {[%emt 0:22:10]} f5 {[%emt 0:07:27]} 13. g4 {[%emt 0:09:40]} g6 {[%emt 0:02:18]} 14. Ndf3 {[%emt 0:12:23]} Be7 {[%emt 0:15:34]} 15. gxf5 {[%emt 0:13:38]} exf5 {[%emt 0:00:46]} 16. Qg3 {[%emt 0:06:10]} Kh8 {[%emt 0:08:38]} 17. Qh3 {[%emt 0:05:21]} Kg7 {[%emt 0:02:36]} 18. Qg3 {[%emt 0:05:22]} Nef6 {[%emt 0:04:04]} 19. Ng5 {[%emt 0:01:46]} Nh5 {[%emt 0:01:00]} 20. Ne6+ {[%emt 0:00:47]} Kh6 {[%emt 0:08:39]} 21. Qh3 {[%emt 0:02:58]} Qc8 {[%emt 0:01:04]} 22. Nxf8 {[%emt 0:00:02]} Nxe5 {[%emt 0:00:07]} 23. fxe5+ {[%emt 0:00:26]} Kg7 {[%emt 0:00:41]} 24. Nxh7 {[%emt 0:00:00]} Kxh7 {[%emt 0:00:05]} 25. Bxf5 {[%emt 0:00:00]} gxf5 {[%emt 0:01:29]} 26. Qxh5+ {[%emt 0:00:00]} Kg7 {[%emt 0:00:06]} 27. Bh6+ {[%emt 0:01:53]} 1-0

[Event "DFMMLV 2019"]
[Site "Braunfels"]
[Date "2019.06.21"]
[Round "2.46"]
[White "Zell, Mirjam"]
[Black "Wenke, Andrea"]
[Result "1-0"]
[ECO "C62"]
[WhiteElo "1660"]
[BlackElo "1756"]
[Annotator "NA RC"]
[PlyCount "112"]
[EventDate "2019.06.20"]
[EventType "team-tourn"]
[EventCountry "GER"]
[SourceTitle "playchess.com"]
[Source "ChessBase"]
[SourceQuality "1"]
[WhiteTeam "Wuerttemberg 2"]
[BlackTeam "Niedersachsen Bremen"]
[TimeControl "40/5400+30:1800+30"]

1. e4 {[%emt 0:00:00]} e5 {[%emt 0:00:00]} 2. Nf3 {[%emt 0:00:00]} Nc6 {[%emt 0:00:00]} 3. Bb5 {[%emt 0:00:00]} d6 {[%emt 0:00:02]} 4. c3 {[%emt 0:00:28]} Bd7 {[%emt 0:00:35]} 5. Ba4 {[%emt 0:00:46]} Be7 {[%emt 0:01:27]} 6. O-O {[%emt 0:08:51]} Nf6 {[%emt 0:01:10]} 7. Re1 {[%emt 0:00:28]} O-O {[%emt 0:02:57]} 8. h3 {[%emt 0:00:29]} Nh5 {[%emt 0:01:50]} 9. Nxe5 {[%emt 0:09:41]} Nxe5 {[%emt 0:02:06]} 10. Bxd7 {[%emt 0:00:09]} Qxd7 {[%emt 0:00:15]} 11. Qxh5 {[%emt 0:00:11]} Nd3 {[%emt 0:00:30]} 12. Rf1 {[%emt 0:01:55]} Qc6 {[%emt 0:04:28]} 13. Qf3 {[%emt 0:03:29]} Ne5 {[%emt 0:01:24]} 14. Qe2 {[%emt 0:02:09]} Ng6 {[%emt 0:06:44]} 15. d3 {[%emt 0:04:36]} f5 {[%emt 0:02:48]} 16. Nd2 {[%emt 0:17:14]} Nf4 {[%emt 0:06:06]} 17. Qf3 {[%emt 0:04:02]} g5 {[%emt 0:03:59]} 18. exf5 {[%emt 0:22:19]} Qxf3 {[%emt 0:03:42]} 19. Nxf3 {[%emt 0:00:13]} Nxd3 {[%emt 0:00:14]} 20. Bxg5 {[%emt 0:02:03]} Bxg5 {[%emt 0:01:20]} 21. Nxg5 {[%emt 0:00:07]} Rxf5 {[%emt 0:00:17]} 22. Nf3 {[%emt 0:05:47]} Re8 {[%emt 0:06:18]} 23. b3 {[%emt 0:02:19]} Nf4 {[%emt 0:02:08]} 24. Rfe1 {[%emt 0:03:11]} Rxe1+ {[%emt 0:01:56]} 25. Rxe1 {[%emt 0:00:07]} Kf7 {[%emt 0:00:09]} 26. Nd4 {[%emt 0:01:36]} Rg5 {[%emt 0:01:50]} 27. g3 {[%emt 0:03:27]} Nxh3+ {[%emt 0:02:18]} 28. Kh2 {[%emt 0:00:54]} Rh5 {[%emt 0:01:13]} 29. Kg2 {[%emt 0:00:22]} Ng5 {[%emt 0:00:51]} 30. f4 {[%emt 0:00:28]} c5 {[%emt 0:02:48]} 31. Nb5 {[%emt 0:03:35]} Ne6 {[%emt 0:01:44]} 32. Nxd6+ {[%emt 0:00:10]} Kf6 {[%emt 0:00:09]} 33. Nxb7 {[%emt 0:01:28]} Rd5 {[%emt 0:00:21]} 34. Kf3 {[%emt 0:01:25]} Rd2 {[%emt 0:04:17]} 35. Re2 {[%emt 0:00:37]} Rd3+ {[%emt 0:00:20]} 36. Re3 {[%emt 0:00:05]} Rd1 {[%emt 0:00:41]} 37. Na5 {[%emt 0:02:28]} Ra1 {[%emt 0:00:50]} 38. a4 {[%emt 0:00:18]} Ra3 {[%emt 0:02:28]} 39. Re4 {[%emt 0:00:42]} Nc7 {[%emt 0:01:09]} 40. Rc4 {[%emt 0:00:53]} Ne6 {[%emt 0:00:58]} 41. g4 {[%emt 0:02:46]} h6 {[%emt 0:02:18]} 42. f5 {[%emt 0:03:51]} Ng5+ {[%emt 0:02:07]} 43. Ke3 {[%emt 0:01:33]} Ra1 {[%emt 0:02:44]} 44. Rxc5 {[%emt 0:01:37]} Rg1 {[%emt 0:02:41]} 45. Rc6+ {[%emt 0:02:59]} Ke5 {[%emt 0:01:12]} 46. Rxh6 {[%emt 0:01:34]} Rxg4 {[%emt 0:00:10]} 47. Nc6+ {[%emt 0:02:11]} Kxf5 {[%emt 0:01:03]} 48. Nxa7 {[%emt 0:05:25]} Ne6 {[%emt 0:01:20]} 49. Nc6 {[%emt 0:03:35]} Rg3+ {[%emt 0:00:55]} 50. Kd2 {[%emt 0:00:41]} Nc5 {[%emt 0:05:10]} 51. Rh5+ {[%emt 0:00:30]} Rg5 {[%emt 0:00:43]} 52. Rxg5+ {[%emt 0:00:33]} Kxg5 {[%emt 0:00:06]} 53. Kc2 {[%emt 0:03:16]} Kf4 {[%emt 0:01:42]} 54. a5 {[%emt 0:00:46]} Ke4 {[%emt 0:00:30]} 55. b4 {[%emt 0:00:27]} Na4 {[%emt 0:01:02]} 56. Kb3 {[%emt 0:00:30]} Kd5 1-0

[Event "DFMMLV 2019"]
[Site "Braunfels"]
[Date "2019.06.21"]
[Round "2.47"]
[White "Luecke, Kristina"]
[Black "Zell, Hannah"]
[Result "1/2-1/2"]
[ECO "C70"]
[WhiteElo "1513"]
[BlackElo "1473"]
[Annotator "NA RC"]
[PlyCount "60"]
[EventDate "2019.06.20"]
[EventType "team-tourn"]
[EventCountry "GER"]
[SourceTitle "playchess.com"]
[Source "ChessBase"]
[SourceQuality "1"]
[WhiteTeam "Niedersachsen Bremen"]
[BlackTeam "Wuerttemberg 2"]
[TimeControl "40/5400+30:1800+30"]

1. e4 {[%emt 0:00:00]} e5 {[%emt 0:00:00]} 2. Nf3 {[%emt 0:00:00]} Nc6 {[%emt 0:00:00]} 3. Bb5 {[%emt 0:00:00]} a6 {[%emt 0:00:01]} 4. Ba4 {[%emt 0:00:00]} Bc5 {[%emt 0:00:22]} 5. O-O {[%emt 0:01:01]} b5 {[%emt 0:01:37]} 6. Bb3 {[%emt 0:00:19]} d6 {[%emt 0:01:23]} 7. h3 {[%emt 0:02:16]} Nf6 {[%emt 0:00:14]} 8. Re1 {[%emt 0:02:40]} O-O {[%emt 0:01:51]} 9. c3 {[%emt 0:00:26]} h6 {[%emt 0:08:08]} 10. d4 {[%emt 0:02:30]} Bb6 {[%emt 0:03:07]} 11. Bc2 {[%emt 0:04:04]} Bb7 {[%emt 0:04:28]} 12. Be3 {[%emt 0:03:27]} Ba7 {[%emt 0:06:39]} 13. Nbd2 {[%emt 0:03:14]} Re8 {[%emt 0:04:15]} 14. Qe2 {[%emt 0:18:10]} exd4 {[%emt 0:10:35]} 15. Nxd4 {[%emt 0:08:38]} Nxd4 {[%emt 0:04:53]} 16. Bxd4 {[%emt 0:00:25]} c5 {[%emt 0:00:55]} 17. Be3 {[%emt 0:22:01]} Nxe4 {[%emt 0:29:39]} 18. Bxh6 {[%emt 0:10:26]} Nf6 {[%emt 0:03:37]} 19. Be3 {[%emt 0:00:52]} c4 {[%emt 0:03:29]} 20. Nf1 {[%emt 0:01:39]} Qd7 {[%emt 0:02:59]} 21. Qd1 {[%emt 0:03:49]} Qc6 {[%emt 0:02:01]} 22. f3 {[%emt 0:02:02]} Bxe3+ {[%emt 0:01:47]} 23. Nxe3 {[%emt 0:01:17]} Qc5 {[%emt 0:00:52]} 24. Qd2 {[%emt 0:04:29]} Nd5 {[%emt 0:04:26]} 25. Kf2 {[%emt 0:04:21]} Nxe3 {[%emt 0:01:40]} 26. Rxe3 {[%emt 0:00:36]} Rxe3 {[%emt 0:00:23]} 27. Qxe3 {[%emt 0:00:07]} Qxe3+ {[%emt 0:00:06]} 28. Kxe3 {[%emt 0:00:07]} Re8+ {[%emt 0:00:19]} 29. Kf2 {[%emt 0:00:16]} Kf8 {[%emt 0:01:15]} 30. Rd1 {[%emt 0:01:03]} Ke7 {[%emt 0:02:04]} 1/2-1/2

[Event "DFMMLV 2019"]
[Site "Braunfels"]
[Date "2019.06.21"]
[Round "2.48"]
[White "Krotsch, Maxi"]
[Black "Evering, Kira"]
[Result "0-1"]
[ECO "C02"]
[WhiteElo "942"]
[BlackElo "1332"]
[Annotator "NA RC"]
[PlyCount "110"]
[EventDate "2019.06.20"]
[EventType "team-tourn"]
[EventCountry "GER"]
[SourceTitle "playchess.com"]
[Source "ChessBase"]
[SourceQuality "1"]
[WhiteTeam "Wuerttemberg 2"]
[BlackTeam "Niedersachsen Bremen"]
[TimeControl "40/5400+30:1800+30"]

1. e4 {[%emt 0:00:00]} e6 {[%emt 0:00:00]} 2. d4 {[%emt 0:00:01]} d5 {[%emt 0:00:01]} 3. e5 {[%emt 0:01:28]} c5 {[%emt 0:00:15]} 4. c3 {[%emt 0:00:50]} Qb6 {[%emt 0:00:15]} 5. Nf3 {[%emt 0:01:32]} Bd7 {[%emt 0:04:21]} 6. b3 Nc6 7. Be3 {[%emt 0:07:22]} cxd4 {[%emt 0:08:11]} 8. cxd4 {[%emt 0:00:42]} Nge7 {[%emt 0:02:09]} 9. Bd3 {[%emt 0:03:16]} Nb4 {[%emt 0:09:36]} 10. a4 {[%emt 0:03:00]} Nxd3+ {[%emt 0:05:13]} 11. Qxd3 {[%emt 0:00:50]} Nf5 {[%emt 0:02:58]} 12. O-O {[%emt 0:01:00]} Be7 {[%emt 0:06:55]} 13. Nbd2 {[%emt 0:05:16]} O-O {[%emt 0:02:16]} 14. Bg5 {[%emt 0:02:16]} Bxg5 {[%emt 0:02:32]} 15. Nxg5 {[%emt 0:00:13]} Qxd4 {[%emt 0:00:38]} 16. Qc2 {[%emt 0:03:31]} Qxe5 {[%emt 0:07:32]} 17. g4 {[%emt 0:01:34]} Qf6 {[%emt 0:00:11]} 18. Ndf3 {[%emt 0:00:40]} h6 {[%emt 0:00:19]} 19. Nh3 {[%emt 0:01:23]} Nd4 {[%emt 0:06:27]} 20. Nxd4 {[%emt 0:00:39]} Qxd4 {[%emt 0:00:12]} 21. Qe2 {[%emt 0:00:00]} e5 {[%emt 0:01:06]} 22. Rad1 {[%emt 0:00:26]} Qxg4+ {[%emt 0:00:34]} 23. Qxg4 {[%emt 0:00:41]} Bxg4 {[%emt 0:00:08]} 24. Rd3 {[%emt 0:00:08]} Be2 {[%emt 0:01:05]} 25. Rxd5 {[%emt 0:00:29]} Bxf1 {[%emt 0:00:27]} 26. Kxf1 {[%emt 0:00:09]} f6 {[%emt 0:02:10]} 27. Rd7 {[%emt 0:00:38]} b6 {[%emt 0:00:32]} 28. b4 {[%emt 0:00:12]} Rfd8 {[%emt 0:00:32]} 29. Rc7 {[%emt 0:00:21]} Rd1+ {[%emt 0:00:10]} 30. Kg2 {[%emt 0:00:12]} Ra1 {[%emt 0:00:32]} 31. a5 {[%emt 0:00:10]} bxa5 {[%emt 0:00:12]} 32. b5 {[%emt 0:00:18]} Rb1 {[%emt 0:00:18]} 33. Rc5 {[%emt 0:00:15]} a6 {[%emt 0:02:20]} 34. bxa6 {[%emt 0:00:19]} Rxa6 {[%emt 0:00:10]} 35. Rc8+ {[%emt 0:00:05]} Kh7 {[%emt 0:00:26]} 36. Ng1 {[%emt 0:00:19]} a4 {[%emt 0:00:50]} 37. Nf3 {[%emt 0:00:10]} a3 {[%emt 0:00:34]} 38. Nd2 {[%emt 0:00:19]} a2 {[%emt 0:03:17]} 39. Nxb1 {[%emt 0:00:18]} axb1=Q {[%emt 0:00:17]} 40. Rc3 {[%emt 0:00:24]} Rb6 {[%emt 0:02:19]} 41. Re3 {[%emt 0:30:31]} Rb3 {[%emt 0:30:35]} 42. Rg3 {[%emt 0:00:30]} Rxg3+ {[%emt 0:00:38]} 43. hxg3 {[%emt 0:00:11]} Qb4 {[%emt 0:01:10]} 44. Kf3 {[%emt 0:00:12]} f5 {[%emt 0:00:29]} 45. Kg2 {[%emt 0:00:25]} Qe4+ {[%emt 0:00:27]} 46. Kh3 {[%emt 0:00:17]} Qg4+ {[%emt 0:00:57]} 47. Kg2 {[%emt 0:00:06]} f4 {[%emt 0:00:09]} 48. Kh2 {[%emt 0:00:31]} fxg3+ {[%emt 0:00:16]} 49. fxg3 {[%emt 0:00:12]} h5 {[%emt 0:02:41]} 50. Kg2 {[%emt 0:00:09]} h4 {[%emt 0:00:15]} 51. Kh1 {[%emt 0:00:21]} Qe2 {[%emt 0:00:31]} 52. gxh4 {[%emt 0:00:17]} Kh6 {[%emt 0:00:18]} 53. Kg1 {[%emt 0:00:17]} Kh5 {[%emt 0:00:10]} 54. Kh1 {[%emt 0:00:10]} Kxh4 {[%emt 0:00:06]} 55. Kg1 {[%emt 0:00:09]} Kg3 0-1

[Event "DFMMLV 2019"]
[Site "Braunfels"]
[Date "2019.06.21"]
[Round "2.49"]
[White "Krasnopeyeva, Julia"]
[Black "Brandt, Carina"]
[Result "1-0"]
[ECO "C19"]
[WhiteElo "1922"]
[BlackElo "2085"]
[Annotator "NA RC"]
[PlyCount "89"]
[EventDate "2019.06.20"]
[EventType "team-tourn"]
[EventCountry "GER"]
[SourceTitle "playchess.com"]
[Source "ChessBase"]
[SourceQuality "1"]
[WhiteTeam "Rheinland Pfalz"]
[BlackTeam "Hamburg"]
[TimeControl "40/5400+30:1800+30"]

1. e4 {[%emt 0:00:00]} e6 {[%emt 0:00:00]} 2. d4 {[%emt 0:00:00]} d5 {[%emt 0:00:00]} 3. Nc3 {[%emt 0:00:00]} Bb4 {[%emt 0:00:00]} 4. e5 {[%emt 0:00:00]} c5 {[%emt 0:00:00]} 5. a3 {[%emt 0:00:00]} Bxc3+ {[%emt 0:00:00]} 6. bxc3 {[%emt 0:00:04]} Ne7 {[%emt 0:00:04]} 7. Nf3 {[%emt 0:00:13]} Qa5 {[%emt 0:00:06]} 8. Bd2 {[%emt 0:00:57]} Qa4 {[%emt 0:00:06]} 9. Qb1 {[%emt 0:02:41]} c4 {[%emt 0:00:19]} 10. Be2 {[%emt 0:02:13]} Nbc6 {[%emt 0:00:14]} 11. h4 {[%emt 0:00:28]} Bd7 {[%emt 0:00:30]} 12. h5 {[%emt 0:00:42]} h6 {[%emt 0:00:08]} 13. O-O {[%emt 0:01:18]} O-O-O {[%emt 0:00:08]} 14. Bf4 {[%emt 0:01:55]} Rdg8 {[%emt 0:01:42]} 15. Re1 {[%emt 0:02:19]} Kb8 {[%emt 0:01:51]} 16. Nh2 {[%emt 0:01:25]} Ka8 {[%emt 0:02:04]} 17. Bg4 {[%emt 0:03:01]} Bc8 {[%emt 0:02:16]} 18. Nf1 {[%emt 0:01:56]} Qa5 {[%emt 0:05:42]} 19. Qb2 {[%emt 0:01:52]} Qc7 {[%emt 0:00:56]} 20. Bh2 {[%emt 0:02:18]} Qd8 {[%emt 0:03:47]} 21. Ne3 {[%emt 0:01:38]} f5 {[%emt 0:06:29]} 22. exf6 {[%emt 0:00:47]} gxf6 {[%emt 0:00:08]} 23. Rab1 {[%emt 0:01:53]} b6 {[%emt 0:14:41]} 24. Bf3 {[%emt 0:09:32]} Qf8 {[%emt 0:14:17]} 25. Qb5 {[%emt 0:01:03]} Bb7 {[%emt 0:00:48]} 26. Qa4 {[%emt 0:02:03]} Na5 {[%emt 0:03:22]} 27. Qd7 e5 {[%emt 0:16:36]} 28. Nxd5 {[%emt 0:10:40]} Nxd5 {[%emt 0:05:10]} 29. Bxd5 {[%emt 0:00:12]} Rg7 {[%emt 0:00:50]} 30. Bxb7+ {[%emt 0:01:18]} Nxb7 {[%emt 0:00:02]} 31. Qd5 {[%emt 0:01:10]} exd4 {[%emt 0:03:13]} 32. cxd4 {[%emt 0:00:30]} Rhg8 {[%emt 0:01:07]} 33. Bg3 {[%emt 0:03:45]} f5 {[%emt 0:07:03]} 34. Re3 {[%emt 0:04:21]} Rg5 {[%emt 0:05:18]} 35. Rf3 {[%emt 0:06:38]} Qc8 {[%emt 0:00:41]} 36. Rf4 {[%emt 0:01:35]} Rd8 {[%emt 0:02:05]} 37. Qf3 {[%emt 0:00:54]} Rdg8 {[%emt 0:00:54]} 38. Rb5 {[%emt 0:02:56]} Re8 {[%emt 0:04:17]} 39. Rbxf5 {[%emt 0:02:46]} Rxf5 {[%emt 0:01:22]} 40. Rxf5 {[%emt 0:00:10]} Qe6 {[%emt 0:00:19]} 41. Rf7 {[%emt 0:35:07]} Re7 {[%emt 0:30:06]} 42. Rf6 {[%emt 0:03:49]} Qe1+ {[%emt 0:00:46]} 43. Kh2 {[%emt 0:00:10]} a5 {[%emt 0:00:17]} 44. Rxb6 {[%emt 0:01:21]} Ka7 {[%emt 0:00:08]} 45. Qc6 {[%emt 0:01:33]} 1-0

[Event "DFMMLV 2019"]
[Site "Braunfels"]
[Date "2019.06.21"]
[Round "2.50"]
[White "Wulf, Constanze"]
[Black "Braje, Monika"]
[Result "0-1"]
[ECO "B01"]
[WhiteElo "1711"]
[BlackElo "1781"]
[Annotator "NA RC"]
[PlyCount "128"]
[EventDate "2019.06.20"]
[EventType "team-tourn"]
[EventCountry "GER"]
[SourceTitle "playchess.com"]
[Source "ChessBase"]
[SourceQuality "1"]
[WhiteTeam "Hamburg"]
[BlackTeam "Rheinland Pfalz"]
[TimeControl "40/5400+30:1800+30"]

1. e4 {[%emt 0:00:00]} d5 {[%emt 0:00:00]} 2. d3 {[%emt 0:00:00]} dxe4 {[%emt 0:00:51]} 3. dxe4 {[%emt 0:00:00]} Qxd1+ {[%emt 0:01:01]} 4. Kxd1 {[%emt 0:00:00]} Nf6 {[%emt 0:01:20]} 5. f3 {[%emt 0:00:06]} Nc6 {[%emt 0:01:43]} 6. c3 {[%emt 0:00:15]} Bd7 {[%emt 0:00:09]} 7. Be3 {[%emt 0:00:41]} O-O-O {[%emt 0:00:19]} 8. Nd2 {[%emt 0:00:41]} a6 {[%emt 0:00:35]} 9. Kc2 {[%emt 0:08:12]} Ne5 {[%emt 0:05:08]} 10. Ne2 {[%emt 0:17:27]} Ba4+ {[%emt 0:04:05]} 11. b3 {[%emt 0:05:30]} Bc6 {[%emt 0:02:35]} 12. Nd4 {[%emt 0:03:18]} Be8 {[%emt 0:01:53]} 13. g4 {[%emt 0:16:39]} h6 {[%emt 0:04:30]} 14. h4 {[%emt 0:04:52]} Kb8 {[%emt 0:06:14]} 15. Nc4 {[%emt 0:04:07]} Ned7 {[%emt 0:02:32]} 16. Bf4 {[%emt 0:05:24]} e6 {[%emt 0:05:36]} 17. b4 {[%emt 0:05:19]} b5 {[%emt 0:06:37]} 18. Nc6+ {[%emt 0:02:02]} Kc8 {[%emt 0:01:26]} 19. Ne3 {[%emt 0:03:14]} Nb6 {[%emt 0:00:49]} 20. Nxd8 {[%emt 0:00:08]} Kxd8 {[%emt 0:00:08]} 21. Rd1+ {[%emt 0:03:36]} Kc8 {[%emt 0:00:10]} 22. Be2 {[%emt 0:02:11]} Nfd7 {[%emt 0:00:48]} 23. a3 {[%emt 0:01:35]} Nb8 {[%emt 0:03:45]} 24. Rd2 {[%emt 0:03:03]} Be7 {[%emt 0:05:40]} 25. c4 {[%emt 0:01:08]} bxc4 {[%emt 0:00:58]} 26. Nxc4 {[%emt 0:01:14]} Ba4+ {[%emt 0:01:21]} 27. Kb2 {[%emt 0:02:28]} Bf6+ {[%emt 0:01:37]} 28. Kb1 {[%emt 0:00:25]} N6d7 {[%emt 0:00:53]} 29. Rc1 {[%emt 0:01:23]} Kd8 {[%emt 0:12:04]} 30. Na5 {[%emt 0:01:44]} e5 {[%emt 0:00:39]} 31. Be3 {[%emt 0:00:25]} Bxh4 {[%emt 0:04:42]} 32. Nb7+ {[%emt 0:00:18]} Ke7 {[%emt 0:01:23]} 33. Bd1 {[%emt 0:02:49]} Bxd1 {[%emt 0:04:27]} 34. Rdxd1 {[%emt 0:00:25]} c6 {[%emt 0:05:18]} 35. Rc2 {[%emt 0:02:27]} Bg5 {[%emt 0:03:41]} 36. Bf2 {[%emt 0:02:34]} h5 {[%emt 0:01:35]} 37. Rh1 {[%emt 0:00:21]} h4 {[%emt 0:00:23]} 38. Nc5 {[%emt 0:01:36]} Nf8 {[%emt 0:05:01]} 39. Nd3 {[%emt 0:00:47]} Ng6 {[%emt 0:00:01]} 40. Rc5 {[%emt 0:00:27]} f6 {[%emt 0:01:58]} 41. Ne1 {[%emt 0:13:18]} Rd8 {[%emt 0:04:56]} 42. Ng2 {[%emt 0:02:14]} Rh8 {[%emt 0:02:23]} 43. Rc2 {[%emt 0:00:24]} h3 {[%emt 0:04:33]} 44. Ne3 {[%emt 0:01:30]} Bf4 {[%emt 0:00:47]} 45. Nf5+ {[%emt 0:00:18]} Kf7 {[%emt 0:00:40]} 46. Be3 {[%emt 0:01:33]} Bxe3 {[%emt 0:02:03]} 47. Nxe3 {[%emt 0:00:04]} Nf4 {[%emt 0:00:06]} 48. Nd1 {[%emt 0:00:16]} Rd8 {[%emt 0:02:33]} 49. Nf2 {[%emt 0:00:34]} Rh8 {[%emt 0:02:43]} 50. Rh2 {[%emt 0:00:08]} Ke7 {[%emt 0:05:29]} 51. Rc1 {[%emt 0:00:25]} Ne2 {[%emt 0:03:19]} 52. Rch1 {[%emt 0:00:24]} Rd8 {[%emt 0:00:46]} 53. Rxh3 {[%emt 0:02:27]} Rd2 {[%emt 0:00:19]} 54. Nd1 {[%emt 0:00:43]} Rd3 {[%emt 0:01:53]} 55. Kb2 {[%emt 0:00:30]} Nd4 {[%emt 0:01:14]} 56. Nc3 {[%emt 0:04:22]} Rd2+ {[%emt 0:01:01]} 57. Kb1 {[%emt 0:00:50]} Nd7 {[%emt 0:01:51]} 58. Rd1 {[%emt 0:02:26]} Rf2 {[%emt 0:00:35]} 59. Rd3 {[%emt 0:01:48]} Nb6 {[%emt 0:01:05]} 60. Rg3 {[%emt 0:00:57]} Nc4 {[%emt 0:01:27]} 61. a4 {[%emt 0:01:11]} Rb2+ {[%emt 0:02:55]} 62. Kc1 {[%emt 0:00:05]} Rc2+ {[%emt 0:00:18]} 63. Kb1 {[%emt 0:00:25]} Na3+ {[%emt 0:01:26]} 64. Ka1 {[%emt 0:00:07]} Nb3# {[%emt 0:00:04]} 0-1

[Event "DFMMLV 2019"]
[Site "Braunfels"]
[Date "2019.06.21"]
[Round "2.52"]
[White "Neumann, Ramona"]
[Black "Kalina, Lena"]
[Result "0-1"]
[ECO "B34"]
[WhiteElo "1709"]
[BlackElo "1687"]
[Annotator "NA RC"]
[PlyCount "56"]
[EventDate "2019.06.20"]
[EventType "team-tourn"]
[EventCountry "GER"]
[SourceTitle "playchess.com"]
[Source "ChessBase"]
[SourceQuality "1"]
[WhiteTeam "Hamburg"]
[BlackTeam "Rheinland Pfalz"]
[TimeControl "40/5400+30:1800+30"]

1. e4 {[%emt 0:00:00]} c5 {[%emt 0:00:00]} 2. Nf3 {[%emt 0:00:00]} Nc6 {[%emt 0:00:14]} 3. d4 {[%emt 0:00:00]} cxd4 {[%emt 0:00:04]} 4. Nxd4 {[%emt 0:00:00]} g6 {[%emt 0:00:04]} 5. Nc3 {[%emt 0:01:38]} Bg7 {[%emt 0:00:29]} 6. Be3 {[%emt 0:01:00]} Nf6 {[%emt 0:01:06]} 7. f3 {[%emt 0:00:23]} O-O {[%emt 0:03:23]} 8. Qd2 {[%emt 0:00:12]} d5 {[%emt 0:05:50]} 9. exd5 {[%emt 0:05:26]} Nb4 {[%emt 0:07:57]} 10. Be2 {[%emt 0:09:15]} Nfxd5 {[%emt 0:05:27]} 11. Nxd5 {[%emt 0:02:43]} Nxd5 {[%emt 0:01:23]} 12. Bf2 {[%emt 0:02:04]} e5 {[%emt 0:07:23]} 13. Nb3 {[%emt 0:09:32]} Nf4 {[%emt 0:02:56]} 14. Bf1 {[%emt 0:03:33]} b6 {[%emt 0:08:24]} 15. g3 {[%emt 0:09:51]} Ne6 {[%emt 0:02:40]} 16. Be2 {[%emt 0:11:30]} Bb7 {[%emt 0:02:53]} 17. O-O {[%emt 0:09:17]} e4 {[%emt 0:04:30]} 18. fxe4 {[%emt 0:02:07]} Bxb2 {[%emt 0:02:00]} 19. Rab1 {[%emt 0:02:24]} Qxd2 {[%emt 0:02:04]} 20. Nxd2 {[%emt 0:00:27]} Bc3 {[%emt 0:01:13]} 21. Rbd1 {[%emt 0:05:49]} Rad8 {[%emt 0:04:22]} 22. Nb1 {[%emt 0:01:02]} Bg7 {[%emt 0:02:00]} 23. Bd3 {[%emt 0:03:40]} Ng5 {[%emt 0:05:13]} 24. Nd2 {[%emt 0:05:08]} f5 {[%emt 0:02:58]} 25. Rfe1 {[%emt 0:07:41]} fxe4 {[%emt 0:01:44]} 26. Bc4+ {[%emt 0:01:39]} Kh8 {[%emt 0:01:55]} 27. Be3 {[%emt 0:02:01]} Rxd2 {[%emt 0:05:12]} 28. Bxg5 {[%emt 0:00:56]} Bd4+ {[%emt 0:01:10]} 0-1